[Event "44th Chess Olympiad Women 2022"]
[Site "Chennai"]
[Date "2022.08.07"]
[Round "9.2"]
[White "Batsiashvili, Nino"]
[Black "Muzychuk, Anna"]
[Result "1-0"]
[WhiteElo "2466"]
[BlackElo "2529"]
[Annotator "TA"]
[PlyCount "97"]
[EventDate "2022.??.??"]
[TimeControl "60"]

{[%evp 14,97,19,16,34,25,18,0,0,-14,-10,-119,24,14,13,0,42,45,31,39,81,65,63,
-12,-16,-55,-45,-96,-98,-102,-57,-57,75,59,62,70,37,56,131,148,128,137,268,265,
267,132,182,169,226,0,147,64,133,115,108,96,400,400,398,394,316,306,5220,310,
330,333,323,328,429,399,564,586,612,587,897,888,29962,29963,29983,29984,29984,
29984,29984,29982,29974,29973]} 1. d4 {[%emt 0:00:03]} Nf6 {[%emt 0:00:06]} 2.
c4 {[%emt 0:00:04]} g6 {[%emt 0:00:09]} 3. Nc3 {[%emt 0:00:05]} d5 {[%emt 0:00:
00]} 4. cxd5 {[%emt 0:00:05]} Nxd5 {[%emt 0:00:03]} 5. Bd2 {[%emt 0:00:13]} Bg7
{[%emt 0:01:25]} 6. e4 {[%emt 0:00:15]} Nxc3 {[%emt 0:00:28]} 7. Bxc3 {[%emt 0:
00:00]} O-O {[%emt 0:00:55]} 8. Qd2 {[%emt 0:03:11]} c5 {[%emt 0:00:30][%cal
Rc5d4] D85: Exchange Grünfeld: Unusual White 7th moves and lines with 7 Nf3.}
9. d5 {[%emt 0:00:10]} e6 {[%emt 0:00:20]} 10. Bxg7 {[%emt 0:09:14]} Kxg7 {
[%emt 0:00:07] [#] The position is equal.} 11. h4 $146 {[%emt 0:00:38][%cal
Yh2h4,Yh4h5,Yh5h6]} ({Predecessor:} 11. d6 Nc6 12. Nf3 e5 13. Rc1 Bg4 14. Rc3
Bxf3 15. Rxf3 Nd4 16. Rh3 h5 17. Bc4 Qxd6 {0-1 (51) Kunin,V (2557)
-Chatalbashev,B (2546) Ferreira do Alentejo 2018}) 11... exd5 {[%emt 0:03:35]}
12. O-O-O {[%emt 0:02:58]} (12. exd5 $11 {keeps the balance.} h5 13. Ne2) 12...
Nc6 {[%emt 0:08:04]} (12... d4 $17 {Strongly threatening ...h5.} 13. h5 g5 14.
h6+ Kh8) 13. h5 $11 {[%emt 0:02:04]} g5 {[%emt 0:09:23]} 14. h6+ {[%emt 0:00:
00]} Kg8 {[%emt 0:08:45]} (14... Kh8 $5 {[%cal Rd5d4]}) 15. exd5 {[%emt 0:00:
00]} Nd4 {[%emt 0:01:46]} 16. Nf3 {[%emt 0:00:07]} Bg4 {[%emt 0:16:45]} 17.
Nxd4 {[%emt 0:11:09]} Bxd1 {[%emt 0:00:12]} 18. Nf5 {[%emt 0:00:08]} ({White
should play} 18. Qxd1 $14 cxd4 19. Qxd4) 18... Bg4 {[%emt 0:01:50]} 19. Ne3 {
[%emt 0:18:55]} Bd7 {[%emt 0:00:51]} 20. Qc3 {[%emt 0:00:05]} (20. Bd3 $15)
20... f6 $17 {[%emt 0:00:07]} 21. Bd3 {[%emt 0:02:17]} b5 {[%emt 0:06:50]} 22.
Qc2 {[%emt 0:03:48]} Rf7 {[%emt 0:02:20] [#]} (22... Qe7 $15 {stays ahead.})
23. Bg6 $1 $16 {[%emt 0:00:50] White is more active.} Qf8 {[%emt 0:12:35]} (
23... hxg6 $2 24. Qxg6+ Kf8 25. h7 $18) (23... Qe8 24. Bh5) 24. Bxf7+ {[%emt 0:
00:00]} Qxf7 {[%emt 0:00:01]} 25. Rd1 {[%emt 0:01:10]} (25. Qxc5 $2 Rc8 26.
Qxc8+ Bxc8 $19) 25... Qg6 {[%emt 0:08:45]} (25... Re8 $14) 26. Qxg6+ $1 {
[%emt 0:05:04]} hxg6 {[%emt 0:00:01] Endgame KRB-KRN} 27. d6 $1 {[%emt 0:00:05]
} Re8 {[%emt 0:10:01]} (27... Kh7 $16 {keeps fighting.}) 28. Nd5 $18 {[%emt 0:
04:55]} Re6 {[%emt 0:00:10]} 29. f4 {[%emt 0:03:04]} (29. Nc7 $18 {has better
winning chances.} Re2 30. Na6) 29... g4 {[%emt 0:06:39]} (29... gxf4 $16 {
might work better.} 30. Nxf4 Re8) 30. Nc7 {[%emt 0:06:07]} Re2 {[%emt 0:01:39]}
31. Na6 $2 {[%emt 0:00:55]} (31. g3 $1 $18) 31... Bf5 {[%emt 0:00:00] [#]} (
31... Rxg2 $11 32. Nxc5 Bf5) 32. Rd5 {[%emt 0:00:11]} ({Reject} 32. h7+ $6 Kxh7
33. Rd5 Rxg2 34. Rxf5 (34. d7 Rg1+ 35. Kd2 Bxd7 $11) 34... gxf5 $11) (32. Rd3
$1 $16 {Threatens to win with d7.} Rxg2 33. d7 Bxd7 34. Rxd7) 32... Rxg2 {
[%emt 0:00:19]} ({Black should try} 32... Rc2+ $14 33. Kd1 Rxg2) 33. d7 $16 {
[%emt 0:02:16]} Bxd7 {[%emt 0:00:12]} 34. Rxd7 {[%emt 0:00:00] KRN-KR} g3 $2 {
[%emt 0:01:14] This costs Black the game.} (34... Rf2 $16) 35. Rg7+ $18 {
[%emt 0:00:24]} Kh8 {[%emt 0:00:01]} 36. Rxg6 {[%emt 0:00:07]} ({Worse is} 36.
Nxc5 Rf2 37. Rxg6 g2 $17) 36... Kh7 {[%emt 0:00:00]} 37. f5 {[%emt 0:00:03]} ({
Wrong is} 37. Rxf6 $2 Rg1+ 38. Kc2 g2 39. Rf7+ Kxh6 40. Rf6+ Kh7 41. Rf7+ Kg6
$19) 37... c4 {[%emt 0:01:14]} (37... Rf2) 38. Nb4 $2 {[%emt 0:00:56]} (38. Nb8
{White threatens Nd7 and mate.} Rf2 39. Nd7 Rf1+ 40. Kd2 Rxf5 41. Nf8+ Kh8 42.
Rg7) 38... Rf2 {[%emt 0:00:17] And now . ..g2 would win.} 39. Rxg3 {[%emt 0:00:
25]} a5 {[%emt 0:00:50]} 40. Nc6 {[%emt 0:00:53]} Rf1+ {[%emt 0:00:35]} 41. Kc2
{[%emt 0:30:06]} Rf2+ {[%emt 0:00:00]} (41... Rxf5 $142 42. Nxa5 Kxh6) 42. Kc3
{[%emt 0:00:00]} b4+ {[%emt 0:00:00]} 43. Kxc4 {[%emt 0:00:00]} Rc2+ {[%emt 0:
00:04]} 44. Kd5 {[%emt 0:00:00] Hoping for Ne7.} Rxb2 {[%emt 0:00:13]} 45. Ke6
{[%emt 0:00:00] White mates.} a4 {[%emt 0:03:18]} 46. Kxf6 {[%emt 0:00:00]} b3
{[%emt 0:01:58]} 47. axb3 {[%emt 0:00:00]} Rxb3 {[%emt 0:00:05]} 48. Rg7+ {
[%emt 0:00:00]} Kxh6 {[%emt 0:00:00]} 49. Rg4 {[%emt 0:00:00] Weighted Error
Value: White=0.35/Black=0.64} 1-0

[Event "44th Chess Olympiad Women 2022"]
[Site "Chennai"]
[Date "2022.08.07"]
[Round "9.2"]
[White "Muzychuk, Mariya"]
[Black "Dzagnidze, Nana"]
[Result "1/2-1/2"]
[WhiteElo "2540"]
[BlackElo "2531"]
[Annotator "TA"]
[PlyCount "38"]
[EventDate "2022.??.??"]
[TimeControl "60"]

{[%evp 9,38,14,16,10,9,0,0,0,107,114,102,110,111,114,100,103,88,112,98,-2,0,0,
0,0,0,0,0,0,0,0,0]} 1. e4 {[%emt 0:00:03]} c5 {[%emt 0:00:04]} 2. Nf3 {[%emt 0:
00:00]} d6 {[%emt 0:00:06]} 3. Bb5+ {[%emt 0:00:08]} Nd7 {[%emt 0:00:06]} 4.
O-O {[%emt 0:00:22]} a6 {[%emt 0:00:07]} 5. Bd3 {[%emt 0:00:05]} Ngf6 {[%emt 0:
00:00]} 6. c3 {[%emt 0:00:30] B51: Sicilian: Moscow Variation (3 Bb5+) without
3...Bd7.} b5 {[%emt 0:00:25]} 7. a4 {[%emt 0:00:47]} Bb7 {[%emt 0:01:42]} 8.
Re1 {[%emt 0:00:54] [#]} Rb8 $146 {[%emt 0:26:09]} (8... e6 $11 {remains equal.
}) ({Predecessor:} 8... c4 9. Bc2 e6 10. d4 cxd3 11. Qxd3 Nc5 12. Qe2 bxa4 13.
Be3 Nfd7 14. Bxc5 Nxc5 15. Rxa4 {0-1 (44) Donchenko,A (2652)-Indjic,A (2607)
Chess.com INT 2021}) 9. axb5 $16 {[%emt 0:06:28]} axb5 {[%emt 0:00:02]} 10.
Bxb5 {[%emt 0:04:18] Hoping for Ra7.} Bxe4 {[%emt 0:01:21]} 11. Na3 {[%emt 0:
00:00] And now d4 would win.} e6 {[%emt 0:06:27] [#]} 12. d4 $1 {[%emt 0:01:59]
Threatens to win with dxc5.} Bxf3 {[%emt 0:03:26]} 13. Qxf3 {[%emt 0:03:01]
aiming for dxc5.} cxd4 {[%emt 0:00:07] [#]} 14. Qg3 {[%emt 0:19:37] 0x0.
0020aa6020e1dp-1022s more active pieces. The black rooks are badly placed.} (
14. c4 $1 $16) 14... dxc3 {[%emt 0:08:13] The position is equal.} 15. bxc3 {
[%emt 0:01:41]} ({Much worse is} 15. Qxc3 Be7 16. Qg3 O-O $17) 15... Nh5 {
[%emt 0:06:12]} 16. Qf3 {[%emt 0:11:18]} Nhf6 {[%emt 0:00:20]} 17. Qg3 {
[%emt 0:00:29]} Nh5 {[%emt 0:00:06]} 18. Qf3 {[%emt 0:00:46]} Nhf6 {[%emt 0:00:
00]} 19. Qg3 {[%emt 0:01:07]} Nh5 {[%emt 0:00:52] Weighted Error Value:
White=0.11 (very precise) /Black=0.17 (very precise)} 1/2-1/2

[Event "44th Chess Olympiad Women 2022"]
[Site "Chennai"]
[Date "2022.08.07"]
[Round "9.2"]
[White "Ushenina, Anna"]
[Black "Javakhishvili, Lela"]
[Result "1/2-1/2"]
[WhiteElo "2423"]
[BlackElo "2476"]
[Annotator "TA"]
[PlyCount "50"]
[EventDate "2022.??.??"]
[TimeControl "60"]

{[%evp 9,50,43,27,31,37,35,28,29,37,35,18,31,33,0,0,0,0,0,47,42,35,39,55,37,39,
0,22,20,37,20,11,16,25,15,35,13,9,0,27,0,15,0,27]} 1. d4 {[%emt 0:00:09]} d5 {
[%emt 0:00:09]} 2. c4 {[%emt 0:00:13]} e6 {[%emt 0:00:06]} 3. Nc3 {[%emt 0:00:
00]} h6 {[%emt 0:00:12]} 4. Nf3 {[%emt 0:00:57]} Nf6 {[%emt 0:00:08]} 5. g3 {
[%emt 0:03:17]} Nc6 {[%emt 0:00:46]} 6. Bg2 {[%emt 0:01:22] D37: Queen's
Gambit Declined: 5 Bf4.} Bd6 {[%emt 0:00:19]} 7. O-O {[%emt 0:18:51]} O-O {
[%emt 0:00:13]} 8. b3 {[%emt 0:11:48] White has an edge.} Re8 {[%emt 0:01:11]}
9. Bb2 {[%emt 0:00:54]} dxc4 {[%emt 0:00:46]} 10. bxc4 {[%emt 0:00:05]} e5 {
[%emt 0:00:08]} 11. d5 {[%emt 0:02:15]} Na5 {[%emt 0:01:23]} 12. Nd2 {[%emt 0:
00:00]} b6 {[%emt 0:09:10] [#]} 13. Qc2 $146 {[%emt 0:06:59]} ({Predecessor:} 
13. Nb5 Bd7 14. Qc2 a6 15. Nxd6 cxd6 16. Ba3 Qc7 17. Rab1 Rab8 18. Qb2 Bg4 19.
f3 {½-½ (60) Gukesh,D (2578)-Sunilduth Lyna,N (2624) Tornelo INT 2021}) 13...
Ba6 {[%emt 0:05:01]} (13... Bd7 $11 {was preferrable.}) 14. Nb5 $1 $14 {
[%emt 0:03:58]} Bxb5 {[%emt 0:10:36]} 15. cxb5 {[%emt 0:00:12]} a6 {[%emt 0:00:
00]} 16. bxa6 {[%emt 0:06:54]} Rxa6 {[%emt 0:00:25]} 17. Ne4 {[%emt 0:04:51]}
Nxe4 {[%emt 0:05:13]} 18. Bxe4 {[%emt 0:00:45][%cal Yg2e4,Ye4d3,Yd3b5]} Qe7 {
[%emt 0:01:26]} 19. Bd3 {[%emt 0:07:44] This bishop pair is nice.} Raa8 {
[%emt 0:02:06]} 20. Bb5 {[%emt 0:00:45]} Rf8 {[%emt 0:00:25]} 21. e4 {[%emt 0:
00:00]} Rac8 {[%emt 0:11:08][%cal Yc7c6]} 22. Ba6 {[%emt 0:01:41]} Ra8 {
[%emt 0:00:42]} 23. Bb5 {[%emt 0:00:04]} Rac8 {[%emt 0:00:20]} 24. Ba6 {
[%emt 0:00:09]} Ra8 {[%emt 0:00:10]} 25. Bb5 {[%emt 0:00:05]} Rac8 {[%emt 0:00:
00] Weighted Error Value: White=0.09 (flawless) /Black=0.06 (flawless)} 1/2-1/2

[Event "44th Chess Olympiad Women 2022"]
[Site "Chennai"]
[Date "2022.08.07"]
[Round "9.3"]
[White "Antova, Gabriela"]
[Black "Balabayeva, Xeniya"]
[Result "1/2-1/2"]
[WhiteElo "2275"]
[BlackElo "2198"]
[Annotator "RC"]
[PlyCount "153"]
[EventDate "2022.??.??"]
[TimeControl "60"]

1. Nf3 {[%emt 0:00:07]} d5 {[%emt 0:00:26]} 2. e3 {[%emt 0:00:10]} Nf6 {
[%emt 0:02:21]} 3. b3 {[%emt 0:00:42]} g6 {[%emt 0:03:11]} 4. Bb2 {[%emt 0:00:
00]} Bg7 {[%emt 0:00:09]} 5. c4 {[%emt 0:00:48]} c6 {[%emt 0:05:39]} 6. Be2 {
[%emt 0:02:26]} O-O {[%emt 0:01:50]} 7. O-O {[%emt 0:00:38]} Bg4 {[%emt 0:00:
00]} 8. d4 {[%emt 0:01:38]} e6 {[%emt 0:08:27]} 9. Nbd2 {[%emt 0:11:55]} Nbd7 {
[%emt 0:04:31]} 10. h3 {[%emt 0:06:22]} Bxf3 {[%emt 0:00:22]} 11. Bxf3 {
[%emt 0:00:11]} Re8 {[%emt 0:01:08]} 12. cxd5 {[%emt 0:01:52]} exd5 {[%emt 0:
00:00]} 13. b4 {[%emt 0:09:05]} a5 {[%emt 0:11:20]} 14. bxa5 {[%emt 0:04:53]}
Qxa5 {[%emt 0:02:08]} 15. Qc2 {[%emt 0:07:43]} Qa4 {[%emt 0:07:39]} 16. Qb1 {
[%emt 0:09:54]} Bf8 {[%emt 0:07:45]} 17. Rc1 {[%emt 0:07:53]} Qa7 {[%emt 0:00:
00]} 18. a4 {[%emt 0:02:17]} Bb4 {[%emt 0:01:37]} 19. Bc3 {[%emt 0:03:45]} Bxc3
{[%emt 0:01:09]} 20. Rxc3 {[%emt 0:00:01]} Qa5 {[%emt 0:01:00]} 21. Qc2 {
[%emt 0:03:24]} Ra7 {[%emt 0:01:01]} 22. Nb3 {[%emt 0:07:51]} Qc7 {[%emt 0:00:
00]} 23. a5 {[%emt 0:00:36]} Qd6 {[%emt 0:01:28]} 24. Ra2 {[%emt 0:05:41]} Rea8
{[%emt 0:00:29]} 25. Rb2 {[%emt 0:01:44]} Qc7 {[%emt 0:01:12]} 26. g3 {[%emt 0:
00:00]} Nf8 {[%emt 0:00:51]} 27. Kg2 {[%emt 0:00:39]} Ne6 {[%emt 0:00:23]} 28.
h4 {[%emt 0:01:39]} h5 {[%emt 0:00:24]} 29. Qc1 {[%emt 0:03:28]} Qe7 {[%emt 0:
00:00]} 30. Qb1 {[%emt 0:00:52]} Nc7 {[%emt 0:01:34]} 31. Rc1 {[%emt 0:01:02]}
Nb5 {[%emt 0:00:52]} 32. Be2 {[%emt 0:00:28]} Nd6 {[%emt 0:00:35]} 33. a6 {
[%emt 0:00:35]} bxa6 {[%emt 0:00:36]} 34. Na5 {[%emt 0:01:29]} Rc7 {[%emt 0:00:
00]} 35. Rxc6 {[%emt 0:01:01]} Rxc6 {[%emt 0:00:24]} 36. Nxc6 {[%emt 0:00:08]}
Qc7 {[%emt 0:00:24]} 37. Ne5 {[%emt 0:02:13]} a5 {[%emt 0:00:31]} 38. Rc2 {
[%emt 0:00:41]} Qa7 {[%emt 0:00:46]} 39. Rc6 {[%emt 0:00:41]} Rd8 {[%emt 0:00:
00]} 40. Ra6 {[%emt 0:00:24]} Qc7 {[%emt 0:00:33]} 41. Qa2 {[%emt 0:03:50]}
Nde4 {[%emt 0:05:50]} 42. Bf3 {[%emt 0:06:12]} Qc3 {[%emt 0:11:02]} 43. Qxa5 {
[%emt 0:09:58]} Qxa5 {[%emt 0:04:53]} 44. Rxa5 {[%emt 0:00:01]} Rc8 {[%emt 0:
00:00]} 45. Ra7 {[%emt 0:03:14]} Nd6 {[%emt 0:01:08]} 46. Ra6 {[%emt 0:05:21]}
Nde4 {[%emt 0:00:41]} 47. Nc6 {[%emt 0:01:22]} Kg7 {[%emt 0:01:39]} 48. Nb4 {
[%emt 0:03:01]} Ng4 {[%emt 0:04:09]} 49. Ra2 {[%emt 0:01:38]} Nc3 {[%emt 0:00:
00]} 50. Rc2 {[%emt 0:00:18]} Rc4 {[%emt 0:00:48]} 51. Bxg4 {[%emt 0:01:11]}
Rxb4 {[%emt 0:00:09]} 52. Rxc3 {[%emt 0:00:30]} hxg4 {[%emt 0:00:19]} 53. Rc5 {
[%emt 0:00:04]} f5 {[%emt 0:00:56]} 54. Rxd5 {[%emt 0:00:04]} Kf6 {[%emt 0:00:
00]} 55. Rd6+ {[%emt 0:00:21]} Kf7 {[%emt 0:00:09]} 56. h5 {[%emt 0:01:30]}
gxh5 {[%emt 0:00:06]} 57. Rh6 {[%emt 0:00:03]} Rb1 {[%emt 0:00:32]} 58. Rxh5 {
[%emt 0:00:06]} Kg6 {[%emt 0:00:07]} 59. Rh1 {[%emt 0:00:25]} Rb2 {[%emt 0:00:
00]} 60. Rd1 {[%emt 0:00:21]} Rb6 {[%emt 0:00:27]} 61. Rd2 {[%emt 0:00:28]} Kf6
{[%emt 0:00:19]} 62. f3 {[%emt 0:01:07]} Ke6 {[%emt 0:00:18]} 63. fxg4 {
[%emt 0:00:52]} fxg4 {[%emt 0:00:02]} 64. Kf2 {[%emt 0:01:05]} Kd5 {[%emt 0:00:
00]} 65. Ke2 {[%emt 0:00:36]} Rb3 {[%emt 0:00:09]} 66. Rd3 {[%emt 0:00:32]}
Rb2+ {[%emt 0:00:06]} 67. Rd2 {[%emt 0:00:30]} Rb3 {[%emt 0:00:05]} 68. Kf2 {
[%emt 0:00:17]} Ra3 {[%emt 0:00:34]} 69. Rc2 {[%emt 0:00:22]} Ke4 {[%emt 0:00:
00]} 70. Re2 {[%emt 0:00:51]} Rd3 {[%emt 0:00:06]} 71. Kg2 {[%emt 0:00:20]} Rd1
{[%emt 0:00:06]} 72. Kf2 {[%emt 0:00:21]} Rd3 {[%emt 0:00:05]} 73. Ke1 {
[%emt 0:00:51]} Kf3 {[%emt 0:00:55]} 74. e4 {[%emt 0:00:21]} Rxd4 {[%emt 0:00:
00]} 75. e5 {[%emt 0:00:08]} Rd7 {[%emt 0:00:09]} 76. e6 {[%emt 0:00:10]} Re7 {
[%emt 0:00:04]} 77. Re5 {[%emt 0:00:46]} 1/2-1/2

[Event "44th Chess Olympiad Women 2022"]
[Site "Chennai"]
[Date "2022.08.07"]
[Round "9.3"]
[White "Assaubayeva, Bibisara"]
[Black "Krasteva, Beloslava"]
[Result "1/2-1/2"]
[WhiteElo "2436"]
[BlackElo "2249"]
[Annotator "TA"]
[PlyCount "68"]
[EventDate "2022.??.??"]
[TimeControl "60"]

{[%evp 15,68,7,25,14,29,18,19,18,18,10,22,8,10,9,16,26,33,39,39,16,25,22,28,12,
10,0,10,0,0,0,0,-44,-38,-44,0,-17,-16,-12,-7,-8,0,0,0,0,0,0,0,0,0,0,0,0,0,0,0]
} 1. d4 {[%emt 0:00:02]} Nf6 {[%emt 0:00:07]} 2. c4 {[%emt 0:00:07]} e6 {
[%emt 0:00:05]} 3. Nf3 {[%emt 0:00:04]} b6 {[%emt 0:00:21]} 4. g3 {[%emt 0:00:
00]} Bb7 {[%emt 0:00:22]} 5. Bg2 {[%emt 0:00:12]} Be7 {[%emt 0:00:39]} 6. O-O {
[%emt 0:00:07]} O-O {[%emt 0:00:05]} 7. Nc3 {[%emt 0:02:05]} Ne4 {[%emt 0:00:
00]} 8. Bd2 $1 {[%emt 0:00:06][%cal Yc1d2,Yd2e1,Ye1c3] outshines the older 8.
Qc2.} Bf6 {[%emt 0:02:19]} 9. Be1 {[%emt 0:02:01] E18: Queen's Indian: Old
Main Line (4 g3 Bb7 5 Bg2 Be7 6 0-0 0-0 7 Nc3).} Nxc3 {[%emt 0:05:47]} 10. Bxc3
{[%emt 0:00:02]} Be4 {[%emt 0:00:09]} 11. Ne1 {[%emt 0:05:24][%cal Yf3e1,Ye1g2,
Yg2e3]} Bxg2 {[%emt 0:01:44]} 12. Nxg2 {[%emt 0:00:17]} c5 {[%emt 0:05:30] [#]}
13. Qd2 $146 {[%emt 0:11:56]} ({Predecessor:} 13. Rc1 Na6 14. e4 d6 15. e5 Be7
16. Qa4 cxd4 17. Bxd4 dxe5 18. Bxe5 Nc5 19. Qc2 Qc8 20. Nf4 {0-1 (32) Ursan,P 
(1642)-Bunta,A (1954) Calimanesti 2013}) 13... cxd4 {[%emt 0:13:51]} 14. Bxd4 {
[%emt 0:00:25]} Bxd4 {[%emt 0:00:16]} 15. Qxd4 {[%emt 0:00:02]} Qe7 {[%emt 0:
03:29]} 16. Rfd1 {[%emt 0:00:13]} Rd8 {[%emt 0:00:00]} 17. Ne3 {[%emt 0:03:53]}
Nc6 {[%emt 0:01:18]} 18. Qc3 {[%emt 0:04:21]} Rac8 {[%emt 0:04:42]} 19. Rac1 {
[%emt 0:01:53]} h6 {[%emt 0:07:16]} 20. a3 {[%emt 0:05:38]} a5 {[%emt 0:02:51]}
21. Qc2 {[%emt 0:19:56]} Qc5 {[%emt 0:00:00]} 22. Qa4 {[%emt 0:02:05]} Nd4 {
[%emt 0:04:54]} 23. b4 {[%emt 0:14:30]} Qe5 {[%emt 0:05:46]} ({Don't play} 
23... Nxe2+ 24. Kf1 axb4 25. axb4 $18 (25. Kxe2 bxa3 26. Ra1 Ra8 $16)) 24. Rd2
{[%emt 0:02:11]} axb4 {[%emt 0:00:53]} (24... d5 $5 {[%cal Rd5c4]} 25. c5 axb4
26. axb4 Ra8 $11) 25. Qxb4 {[%emt 0:05:34] The position is equal.} Nc6 {
[%emt 0:07:51]} 26. Qb5 {[%emt 0:02:32]} Qc5 {[%emt 0:00:00]} 27. Rcd1 {
[%emt 0:03:07][%cal Yc1d1,Yd1d7,Yd7b7,Yb7b6]} Qxa3 {[%emt 0:03:39]} 28. Rxd7 {
[%emt 0:01:05]} Rxd7 {[%emt 0:00:15]} 29. Rxd7 {[%emt 0:00:01]} Qc5 {[%emt 0:
03:24]} 30. Rb7 {[%emt 0:03:51]} Na5 {[%emt 0:00:00]} 31. Qxc5 {[%emt 0:02:22]}
Rxc5 {[%emt 0:00:22]} 32. Rxb6 {[%emt 0:00:20]} Nxc4 {[%emt 0:00:09]} 33. Nxc4
{[%emt 0:00:03]} Rxc4 {[%emt 0:00:11]} 34. h4 {[%emt 0:00:09]} h5 {[%emt 0:00:
44] Weighted Error Value: White=0.06 (flawless) /Black=0.05 (flawless)} 1/2-1/2

[Event "44th Chess Olympiad Women 2022"]
[Site "Chennai"]
[Date "2022.08.07"]
[Round "9.3"]
[White "Nakhbayeva, Guliskhan"]
[Black "Radeva, Viktoria"]
[Result "1-0"]
[WhiteElo "2329"]
[BlackElo "2289"]
[Annotator "RC"]
[PlyCount "143"]
[EventDate "2022.??.??"]
[TimeControl "60"]

1. d4 {[%emt 0:00:04]} Nf6 {[%emt 0:00:06]} 2. c4 {[%emt 0:00:16]} e6 {[%emt 0:
00:00]} 3. Nc3 {[%emt 0:00:16]} Bb4 {[%emt 0:00:06]} 4. e3 {[%emt 0:00:20]} O-O
{[%emt 0:00:25]} 5. Bd3 {[%emt 0:00:08]} c5 {[%emt 0:00:20]} 6. a3 {[%emt 0:00:
00]} Bxc3+ {[%emt 0:00:14]} 7. bxc3 {[%emt 0:00:02]} Nc6 {[%emt 0:02:20]} 8.
Ne2 {[%emt 0:00:20]} b6 {[%emt 0:07:49]} 9. O-O {[%emt 0:02:44]} d6 {[%emt 0:
00:00]} 10. e4 {[%emt 0:01:41]} e5 {[%emt 0:09:20]} 11. d5 {[%emt 0:07:46]} Ne7
{[%emt 0:00:05]} 12. f4 {[%emt 0:02:58]} exf4 {[%emt 0:02:59]} 13. Bxf4 {
[%emt 0:01:34]} Ng4 {[%emt 0:10:47]} 14. h3 {[%emt 0:08:18]} Ne5 {[%emt 0:00:
00]} 15. Bxe5 {[%emt 0:02:42]} dxe5 {[%emt 0:00:07]} 16. a4 {[%emt 0:01:47]} a5
{[%emt 0:08:09]} 17. Ng3 {[%emt 0:04:14]} Qd6 {[%emt 0:09:20]} 18. Ra2 {
[%emt 0:03:55]} Bd7 {[%emt 0:03:10]} 19. Raf2 {[%emt 0:07:06]} f6 {[%emt 0:00:
00]} 20. Be2 {[%emt 0:01:49]} Rad8 {[%emt 0:10:37]} 21. Bg4 {[%emt 0:02:09]}
Bxg4 {[%emt 0:02:16]} 22. Qxg4 {[%emt 0:00:33]} Qd7 {[%emt 0:11:32]} 23. Qd1 {
[%emt 0:10:22]} Nc8 {[%emt 0:00:00]} 24. Qb3 {[%emt 0:05:06]} Qc7 {[%emt 0:00:
00]} 25. Rb2 {[%emt 0:06:18]} Qd7 {[%emt 0:00:00]} 26. Qa2 {[%emt 0:00:41]} g6
{[%emt 0:00:43]} 27. Rbf2 {[%emt 0:04:54]} Kg7 {[%emt 0:00:17]} 28. Qb3 {
[%emt 0:00:06]} h5 {[%emt 0:03:46]} 29. Re1 {[%emt 0:01:04]} Rf7 {[%emt 0:00:
00]} 30. Nf1 {[%emt 0:02:17]} Qa7 {[%emt 0:01:14]} 31. Rb2 {[%emt 0:02:57]} Qd7
{[%emt 0:00:29]} 32. Qd1 {[%emt 0:01:53]} Rdf8 {[%emt 0:00:59]} 33. Nd2 {
[%emt 0:01:09]} Qc7 {[%emt 0:00:54]} 34. Qb1 {[%emt 0:01:30]} Qd7 {[%emt 0:00:
00]} 35. Qc2 {[%emt 0:00:29]} Qc7 {[%emt 0:00:14]} 36. Reb1 {[%emt 0:00:17]}
Rd8 {[%emt 0:01:20]} 37. Nf3 {[%emt 0:00:41]} Qd7 {[%emt 0:01:11]} 38. Re1 {
[%emt 0:06:18]} Qc7 {[%emt 0:00:45]} 39. Qb3 {[%emt 0:03:10]} Qd7 {[%emt 0:00:
00]} 40. Rf2 {[%emt 0:00:21]} Rdf8 {[%emt 0:01:22]} 41. Nh4 {[%emt 0:31:04]}
Kh7 {[%emt 0:04:15]} 42. Rf3 {[%emt 0:00:00]} Qd8 {[%emt 0:06:03]} 43. Rf2 {
[%emt 0:00:00]} Nd6 {[%emt 0:02:07]} 44. Nf3 {[%emt 0:00:00]} Kg7 {[%emt 0:00:
00]} 45. Rb2 {[%emt 0:00:00]} Qd7 {[%emt 0:03:05]} 46. Nd2 {[%emt 0:00:00]} Nc8
{[%emt 0:00:40]} 47. Qb5 {[%emt 0:00:00]} Qd8 {[%emt 0:02:27]} 48. Rf1 {
[%emt 0:00:00]} g5 {[%emt 0:04:06]} 49. Qb3 {[%emt 0:00:00]} Qd7 {[%emt 0:00:
00]} 50. Qb5 {[%emt 0:00:00]} Qd8 {[%emt 0:00:04]} 51. Re1 {[%emt 0:00:00]} Rh8
{[%emt 0:01:43]} 52. Nf1 {[%emt 0:00:00]} g4 {[%emt 0:05:59]} 53. Ne3 {[%emt 0:
00:00]} gxh3 {[%emt 0:00:34]} 54. gxh3 {[%emt 0:00:00]} Kh7 {[%emt 0:00:28]}
55. Kh2 {[%emt 0:04:23]} Rg8 {[%emt 0:00:26]} 56. Qc6 {[%emt 0:01:22]} Qf8 {
[%emt 0:01:37]} 57. Qe6 {[%emt 0:01:57]} Kh8 {[%emt 0:01:34]} 58. Nf5 {[%emt 0:
00:00]} Ne7 {[%emt 0:00:29]} 59. Rxb6 {[%emt 0:01:23]} Nxf5 {[%emt 0:00:13]}
60. Qxf5 {[%emt 0:00:14]} Qh6 {[%emt 0:00:16]} 61. Rb2 {[%emt 0:00:23]} Rb7 {
[%emt 0:01:01]} 62. Ree2 {[%emt 0:01:32]} Rbg7 {[%emt 0:00:33]} 63. Rf2 {
[%emt 0:01:21]} Qe3 {[%emt 0:00:30]} 64. Qxh5+ {[%emt 0:00:22]} Rh7 {[%emt 0:
00:00]} 65. Qf3 {[%emt 0:00:15]} Qe1 {[%emt 0:00:52]} 66. Qxf6+ {[%emt 0:01:12]
} Rhg7 {[%emt 0:00:05]} 67. Rg2 {[%emt 0:00:49]} Qxe4 {[%emt 0:00:37]} 68. Rxg7
{[%emt 0:00:58]} Rxg7 {[%emt 0:00:08]} 69. Qh6+ {[%emt 0:00:06]} Qh7 {[%emt 0:
00:00]} 70. Rb8+ {[%emt 0:00:11]} Rg8 {[%emt 0:00:09]} 71. Rxg8+ {[%emt 0:00:
00]} Kxg8 {[%emt 0:00:04]} 72. Qxh7+ {[%emt 0:00:03]} 1-0